bitfinex-derivatives/quotes_BTCF0:USTF0_20250729
["timestamp","ask_amount","ask_price","bid_price","bid_amount"]
[1753772172618,1.54864982,119020.0,119010.0,0.43950213]
[1753772172821,1.54664982,119020.0,119010.0,0.43950213]
[1753772173016,1.54664982,119020.0,119010.0,0.51816213]
[1753772173820,1.26684896,119020.0,119010.0,0.45774491]
[1753772174018,1.54664982,119020.0,119010.0,0.45774491]
[1753772175221,1.26684896,119020.0,119010.0,0.45774491]
[1753772175520,1.54664982,119020.0,119010.0,0.45774491]
[1753772178218,1.54664982,119020.0,119010.0,0.37908491]
[1753772178619,1.54664982,119020.0,119010.0,0.06676631]
[1753772178815,1.54664982,119020.0,119010.0,0.02129631]
[1753772181525,0.458956,119010.0,119000.0,0.07532082]
[1753772181826,0.2819901,119000.0,118990.0,0.07532082]
[1753772182026,1.81299504,119000.0,118990.0,0.07532082]
[1753772182723,0.4579842,118990.0,118980.0,1.19657432]
[1753772182923,0.85778506,118990.0,118980.0,0.07532082]
[1753772183233,0.2820184,118980.0,118970.0,0.54543433]
[1753772183429,0.75796035,118980.0,118970.0,0.62597433]
[1753772183933,0.75796035,118980.0,118970.0,0.3165518]
[1753772184229,0.75796035,118980.0,118970.0,0.25370673]
[1753772184429,1.4855618,118980.0,118970.0,0.10525673]
[1753772184627,1.4835618,118980.0,118970.0,0.27336923]
[1753772185329,1.47500035,118980.0,118970.0,0.27336923]
[1753772185626,1.47500035,118980.0,118970.0,0.34202923]
[1753772185829,1.47500035,118980.0,118970.0,0.2839425]
[1753772186018,1.47300035,118980.0,118970.0,0.2839425]
[1753772186728,1.47300035,118980.0,118970.0,0.2909425]
[1753772186931,1.47300035,118980.0,118970.0,0.2222825]
[1753772187231,1.47300035,118980.0,118970.0,0.1751125]
[1753772188627,1.47300035,118980.0,118970.0,0.007]
[1753772188827,1.47300035,118980.0,118970.0,0.1751125]
[1753772189126,1.47300035,118980.0,118970.0,0.007]
[1753772189532,1.75280121,118980.0,118970.0,0.007]
[1753772189830,1.47300035,118980.0,118970.0,0.007]
[1753772190030,0.4590266,118960.0,118950.0,0.43415849]
[1753772190228,1.12862832,118960.0,118950.0,0.55673349]
[1753772190530,1.12862832,118960.0,118950.0,0.51469849]
[1753772190730,1.12862832,118960.0,118950.0,0.4391538]
[1753772191326,0.84782746,118960.0,118950.0,0.4787238]
[1753772191526,0.84782746,118960.0,118950.0,0.53899334]
[1753772192034,0.84782746,118960.0,118950.0,0.54199334]
[1753772192226,0.5680266,118960.0,118950.0,0.54199334]
[1753772192425,0.84782746,118960.0,118950.0,0.54199334]
[1753772193435,1.12762832,118960.0,118950.0,0.23141034]
[1753772193636,1.12762832,118960.0,118950.0,0.1711408]
[1753772193836,1.12762832,118960.0,118950.0,0.2398008]
[1753772194028,1.84454832,118960.0,118950.0,0.003]
[1753772194230,1.84454832,118960.0,118950.0,0.06326954]
[1753772194835,1.84454832,118960.0,118950.0,0.06426954]
[1753772195333,1.84454832,118960.0,118950.0,0.004]
[1753772195525,0.1681408,118950.0,118940.0,0.22841974]
[1753772195723,0.67186166,118950.0,118940.0,0.1681502]
[1753772195928,0.84884166,118950.0,118940.0,0.2368102]
[1753772197632,0.84884166,118950.0,118940.0,0.1681502]
[1753772197835,0.84884166,118950.0,118940.0,0.1701502]
[1753772202034,0.84884166,118950.0,118940.0,0.23041974]
[1753772202435,0.5690408,118950.0,118940.0,0.23042444]
[1753772202635,0.84884166,118950.0,118940.0,0.23042444]
[1753772203334,0.84884166,118950.0,118940.0,0.1701549]
[1753772203536,0.84884166,118950.0,118940.0,0.2374049]
[1753772205638,0.84884166,118950.0,118940.0,0.2858349]
[1753772206545,0.84884166,118950.0,118940.0,0.3172749]
[1753772206939,0.22852,118950.0,118940.0,0.3568449]
[1753772207141,0.11,118950.0,118940.0,0.71634576]
[1753772207335,0.2781408,118950.0,118940.0,0.71634576]
[1753772207539,0.15684,118950.0,118940.0,0.4365449]
[1753772207741,0.19804,118950.0,118940.0,0.4365449]
[1753772207943,0.70787166,118950.0,118940.0,0.4365449]
[1753772208245,0.85789166,118950.0,118940.0,0.4365449]
[1753772213647,0.55794166,118950.0,118940.0,0.4365449]
[1753772213948,0.60478166,118950.0,118940.0,0.4365449]
[1753772214140,0.4280708,118950.0,118940.0,0.4365449]
[1753772214340,0.85789166,118950.0,118940.0,0.4365449]
[1753772214540,0.85789166,118950.0,118940.0,0.4345449]
[1753772215548,0.85889166,118950.0,118940.0,0.4345449]
[1753772223444,0.85889166,118950.0,118940.0,0.1681549]
[1753772223642,0.85889166,118950.0,118940.0,0.71536]
[1753772223643,0.77482656,118950.0,118940.0,0.71536]
[1753772223848,1.02704366,118950.0,118940.0,0.8835149]
[1753772224952,1.02704366,118950.0,118940.0,0.1681549]
[1753772225753,1.02804366,118950.0,118940.0,0.1681549]
[1753772227456,1.02904366,118950.0,118940.0,0.1681549]
[1753772227657,0.7492428,118950.0,118940.0,0.1681549]
[1753772227951,1.02904366,118950.0,118940.0,0.1681549]
[1753772229943,0.86090296,118950.0,118930.0,0.1261222]
[1753772230250,0.86090296,118950.0,118920.0,0.36562669]
[1753772230251,0.468119,118930.0,118920.0,0.36562669]
[1753772230455,0.86791986,118930.0,118920.0,1.07958669]
[1753772230649,0.86791986,118930.0,118920.0,1.14683669]
[1753772231148,0.86791986,118930.0,118920.0,0.95767349]
[1753772231348,0.86791986,118930.0,118920.0,0.8821288]
[1753772231855,0.86791986,118930.0,118920.0,0.9988088]
[1753772232050,0.86791986,118930.0,118920.0,1.0298088]
[1753772232453,0.86791986,118930.0,118920.0,1.1082188]
[1753772233360,0.86791986,118930.0,118920.0,1.18376349]
[1753772235759,0.588119,118930.0,118920.0,1.1092188]
[1753772235959,0.86791986,118930.0,118920.0,1.1092188]
[1753772236155,0.69979086,118930.0,118920.0,1.1092188]
[1753772236355,0.86795986,118930.0,118920.0,1.18476349]
[1753772236756,0.12,118930.0,118920.0,1.1092188]
[1753772237655,0.39980086,118930.0,118920.0,1.1092188]
[1753772240462,0.12,118930.0,118920.0,1.1092188]
[1753772240663,0.39980086,118930.0,118920.0,1.1092188]
[1753772240857,0.39980086,118930.0,118920.0,1.18476349]
[1753772241363,0.44648086,118930.0,118920.0,1.18476349]
[1753772242061,0.48614086,118930.0,118920.0,1.18476349]
[1753772242258,0.57530086,118930.0,118920.0,1.18476349]
[1753772242464,0.86025986,118930.0,118920.0,1.18476349]
[1753772247268,0.69209086,118930.0,118920.0,1.18476349]
[1753772247870,0.86025986,118930.0,118920.0,1.18476349]
[1753772248176,0.86025986,118930.0,118920.0,0.95923349]
[1753772248470,0.86025986,118930.0,118920.0,1.10608349]
[1753772248671,0.86025986,118930.0,118920.0,1.03008349]
[1753772248862,0.86025986,118930.0,118920.0,1.10608349]
[1753772249061,0.86025986,118930.0,118920.0,1.0305388]
[1753772252674,0.580459,118930.0,118920.0,1.0305388]
[1753772252975,0.86025986,118930.0,118920.0,1.0305388]
[1753772255479,0.69209086,118930.0,118920.0,1.0305388]
[1753772256875,0.86025986,118930.0,118920.0,1.0305388]
[1753772257773,0.69209086,118930.0,118920.0,1.0305388]
[1753772257977,0.86025976,118930.0,118920.0,1.0305388]
[1753772258971,0.86025976,118930.0,118920.0,1.10608349]
[1753772259369,0.69209086,118930.0,118920.0,1.10608349]
[1753772260076,0.86025976,118930.0,118920.0,1.10608349]
[1753772260375,0.69209086,118930.0,118920.0,1.10608349]
[1753772260977,0.39980086,118930.0,118920.0,1.10608349]
[1753772261181,0.48614086,118930.0,118920.0,1.10608349]
[1753772261373,0.64632086,118930.0,118920.0,1.10608349]
[1753772261572,0.69209086,118930.0,118920.0,1.10608349]
[1753772261876,0.86025986,118930.0,118920.0,1.10608349]
[1753772263074,0.86025986,118930.0,118920.0,0.95923349]
[1753772263275,0.86025986,118930.0,118920.0,1.03008349]
[1753772265779,0.86025986,118930.0,118920.0,1.10575349]
[1753772266174,0.86025986,118930.0,118920.0,1.0302088]
[1753772266478,0.12,118930.0,118920.0,1.0302088]
[1753772266682,0.36169,118930.0,118920.0,1.10575349]
[1753772266876,0.29645,118930.0,118920.0,1.10575349]
[1753772267077,0.57625086,118930.0,118920.0,1.10575349]
[1753772267679,0.64149086,118930.0,118920.0,1.0302088]
[1753772267981,0.64149086,118930.0,118920.0,1.10591655]
[1753772269481,0.64149086,118930.0,118920.0,1.0302088]
[1753772271176,0.68814086,118930.0,118920.0,1.0302088]
[1753772271381,0.68814086,118930.0,118920.0,1.10591057]
[1753772271885,0.68814086,118930.0,118920.0,1.0302088]
[1753772272875,0.68814086,118930.0,118920.0,1.10590997]
[1753772273085,0.85630976,118930.0,118920.0,1.10590997]
[1753772273983,0.85630976,118930.0,118920.0,1.0302088]
[1753772282890,0.26521,118930.0,118920.0,1.0302088]
[1753772283089,0.54501086,118930.0,118920.0,1.0302088]
[1753772283292,0.57625086,118930.0,118920.0,1.0302088]
[1753772283487,0.68814086,118930.0,118920.0,1.0302088]
[1753772286500,0.68814086,118930.0,118920.0,1.10590933]
[1753772286902,0.85630966,118930.0,118920.0,1.10590933]
[1753772287896,0.5765088,118930.0,118920.0,1.10590933]
[1753772288097,0.85630966,118930.0,118920.0,1.10590933]
[1753772289506,0.85630966,118930.0,118920.0,1.07807933]
[1753772289707,0.85630966,118930.0,118920.0,1.10417933]
[1753772289905,0.85630966,118930.0,118920.0,0.50593933]
[1753772290097,0.85630966,118930.0,118920.0,1.22129933]
[1753772290595,0.85630966,118930.0,118920.0,0.96122933]
[1753772290797,0.85630966,118930.0,118920.0,0.1701688]
[1753772290999,0.85630966,118930.0,118920.0,0.8849688]
[1753772292609,0.85630966,118930.0,118920.0,1.0268188]
[1753772293100,0.85630966,118930.0,118920.0,1.0746588]
[1753772293601,0.85630966,118930.0,118920.0,1.1004088]
[1753772297305,0.85630966,118930.0,118920.0,0.3856088]
[1753772297603,0.85630966,118930.0,118920.0,1.0979688]
[1753772297804,0.85630966,118930.0,118920.0,1.0722188]
[1753772298005,0.85630966,118930.0,118920.0,1.0243788]
[1753772298203,0.85630966,118930.0,118920.0,1.10007933]
[1753772298605,0.85630966,118930.0,118920.0,1.14783933]
[1753772298906,0.85630966,118930.0,118920.0,1.17358933]
[1753772299206,0.85630966,118930.0,118920.0,1.0978888]
[1753772299701,0.85630966,118930.0,118920.0,1.17358933]
[1753772301209,0.85630966,118930.0,118920.0,1.0978888]
[1753772307209,0.63909966,118930.0,118920.0,1.0978888]
[1753772307409,0.51846086,118930.0,118920.0,1.0978888]
[1753772307609,0.74300966,118930.0,118920.0,1.0978888]
[1753772308009,0.80617966,118930.0,118920.0,1.0978888]
[1753772308409,0.80617966,118930.0,118920.0,1.17358933]
[1753772310113,0.84820966,118930.0,118920.0,1.17358933]
[1753772311008,0.84820966,118930.0,118920.0,1.0978888]
[1753772311911,0.84820966,118930.0,118920.0,1.17358933]
[1753772312311,0.5684088,118930.0,118920.0,1.17358933]
[1753772312517,0.84820966,118930.0,118920.0,1.17358933]
[1753772313414,0.84820966,118930.0,118920.0,1.0978888]
[1753772315020,0.84820966,118930.0,118920.0,1.17358933]
[1753772322824,0.98880122,118930.0,118920.0,1.17358933]
[1753772324928,0.98880122,118930.0,118920.0,1.0978888]
[1753772330629,0.98880122,118930.0,118920.0,0.8825288]
[1753772330819,1.19899743,118930.0,118920.0,0.002]
[1753772331022,1.19899743,118930.0,118920.0,0.872903]
[1753772331323,1.19899743,118930.0,118920.0,0.871903]
[1753772331525,1.19999743,118930.0,118920.0,0.870903]
[1753772332826,0.84974302,118930.0,118920.0,0.870903]
[1753772333017,0.84974302,118930.0,118920.0,0.938713]
[1753772333223,0.84974302,118930.0,118920.0,0.983453]
[1753772333620,1.13007724,118930.0,118920.0,0.870903]
[1753772335425,1.13007724,118930.0,118910.0,0.2102338]
[1753772335426,0.4484529,118920.0,118910.0,0.2102338]
[1753772335729,1.13912134,118920.0,118910.0,0.2102338]
[1753772336628,1.13912134,118920.0,118910.0,0.2112338]
[1753772338329,0.5784529,118920.0,118910.0,0.2102338]
[1753772338528,1.13912134,118920.0,118910.0,0.2102338]
[1753772340031,1.13912134,118920.0,118910.0,0.3542838]
[1753772340225,0.4045754,118890.0,118880.0,0.07580053]
[1753772340430,1.13916384,118890.0,118880.0,0.88381726]
[1753772340628,1.13916384,118890.0,118880.0,0.10535673]
[1753772340829,1.13916384,118890.0,118880.0,0.70286]
[1753772341232,1.14752227,118890.0,118880.0,0.70286]
[1753772341530,1.14752227,118890.0,118880.0,0.70586]
[1753772341735,1.14752227,118890.0,118880.0,0.0031]
[1753772342035,1.14752227,118890.0,118880.0,0.70582]
[1753772342632,1.14752227,118890.0,118880.0,0.78152053]
[1753772343035,1.14752227,118890.0,118880.0,0.78160053]
[1753772343036,0.58685383,118890.0,118880.0,0.78160053]
[1753772343236,1.14752227,118890.0,118880.0,0.7059]
[1753772343635,0.86718805,118890.0,118880.0,0.7059]
[1753772344437,0.85982962,118890.0,118880.0,0.77371]
[1753772344835,0.92720335,118890.0,118880.0,0.77371]
[1753772345439,0.92820335,118890.0,118880.0,0.77071]
[1753772347628,0.92820335,118890.0,118880.0,0.741101]
[1753772347836,0.2825894,118880.0,118870.0,0.18246]
[1753772348056,1.12917784,118880.0,118870.0,0.8853]
[1753772348535,1.12917784,118880.0,118870.0,0.18246]
[1753772348933,1.12917784,118880.0,118870.0,0.8853]
[1753772349538,1.13017784,118880.0,118870.0,0.8853]
[1753772349936,1.13017784,118880.0,118870.0,0.95311]
[1753772350939,1.12917784,118880.0,118870.0,0.95311]
[1753772351141,1.13017784,118880.0,118870.0,0.95311]
[1753772351643,1.13117784,118880.0,118870.0,0.95311]
[1753772352938,1.13117784,118880.0,118870.0,0.25027]
[1753772353138,1.13117784,118880.0,118870.0,0.95315]
[1753772353738,1.01682784,118880.0,118870.0,0.8416]
[1753772354642,1.01582784,118880.0,118870.0,0.8416]
[1753772354842,1.01882784,118880.0,118870.0,0.8416]
[1753772355343,0.85390784,118880.0,118870.0,0.70288]
[1753772356747,0.87470232,118880.0,118870.0,0.70288]
[1753772356949,0.85390784,118880.0,118870.0,0.70288]
[1753772357345,1.12513784,118880.0,118870.0,0.94568]
[1753772358249,1.14592887,118880.0,118870.0,0.94568]
[1753772358444,1.12513784,118880.0,118870.0,0.94568]
[1753772358750,1.14593199,118880.0,118870.0,0.94568]
[1753772359445,0.58526355,118880.0,118870.0,0.94568]
[1753772359647,1.14593199,118880.0,118870.0,0.94568]
[1753772370760,1.14593199,118880.0,118870.0,0.9454]
[1753772374458,0.58526355,118880.0,118870.0,0.9454]
[1753772374661,1.14593199,118880.0,118870.0,0.9454]
[1753772376857,1.14593199,118880.0,118870.0,0.2428]
[1753772377049,1.14593199,118880.0,118870.0,0.94528]
[1753772386862,1.21665153,118880.0,118870.0,0.94528]
[1753772390856,1.21665153,118880.0,118870.0,0.94492]
[1753772391558,1.21665153,118880.0,118870.0,0.24065707]
[1753772391760,0.438378,118860.0,118850.0,0.23056]
[1753772392060,1.12690598,118860.0,118850.0,1.1008821]
[1753772392261,0.91644332,118860.0,118850.0,1.1008821]
[1753772392460,0.86991759,118860.0,118850.0,1.1008821]
[1753772392862,0.82356759,118860.0,118850.0,1.1008821]
[1753772393067,0.74375332,118860.0,118850.0,1.1008821]
[1753772395164,0.74375332,118860.0,118850.0,1.1008021]
[1753772396267,0.75225805,118860.0,118850.0,1.1008021]
[1753772398061,0.74375332,118860.0,118850.0,1.1008021]
[1753772398769,0.79010332,118860.0,118850.0,1.1008021]
[1753772399372,0.91644332,118860.0,118850.0,1.1008021]
[1753772400274,0.86138332,118860.0,118850.0,1.1008021]
[1753772400470,0.49873066,118860.0,118850.0,1.31126476]
[1753772400772,0.49873066,118860.0,118850.0,1.1008021]
[1753772400969,0.31972863,118890.0,118870.0,0.0936]
[1753772401162,0.42876175,118890.0,118880.0,1.24447236]
[1753772401366,0.16650373,118890.0,118880.0,1.45493502]
[1753772401569,0.2902385,118920.0,118890.0,0.0420534]
[1753772401769,0.57017691,118920.0,118910.0,0.37865986]
[1753772401970,0.78063957,118920.0,118910.0,0.1681972]
[1753772402573,0.78063957,118920.0,118910.0,0.8698772]
[1753772402769,0.70576557,118920.0,118910.0,0.8698772]
[1753772402969,0.86378557,118920.0,118910.0,0.8698772]
[1753772403277,0.93228727,118920.0,118910.0,0.8698772]
[1753772404166,0.91421002,118920.0,118910.0,0.8698772]
[1753772404672,0.91721002,118920.0,118910.0,0.8698772]
[1753772404873,0.93754463,118920.0,118910.0,0.8698772]
[1753772405082,0.252315,118910.0,118900.0,0.2102545]
[1753772405272,0.2892214,118900.0,118890.0,0.2523267]
[1753772405478,0.4383355,118890.0,118880.0,1.3741276]
[1753772405680,0.82864682,118890.0,118880.0,2.0756476]
[1753772407266,0.82864682,118890.0,118880.0,2.0755276]
[1753772408278,0.82964682,118890.0,118880.0,2.0755276]
[1753772408677,0.83064682,118890.0,118880.0,2.0755276]
[1753772409092,0.83064682,118890.0,118880.0,1.3741276]
[1753772409280,0.83064682,118890.0,118880.0,1.16384]
[1753772409481,0.83064682,118890.0,118880.0,1.8652]
[1753772410680,0.83064682,118890.0,118880.0,1.16384]
[1753772410885,0.2802255,118890.0,118880.0,2.0334397]
[1753772411077,0.3265755,118890.0,118880.0,2.0334397]
[1753772412279,0.60688682,118890.0,118880.0,2.0334397]
[1753772413387,0.60688682,118890.0,118880.0,2.0519297]
[1753772413388,0.67247682,118890.0,118880.0,2.0519297]
[1753772414784,0.60688682,118890.0,118880.0,2.0519297]
[1753772416180,0.112,118890.0,118880.0,2.33224102]
[1753772416378,0.112,118890.0,118880.0,2.50047302]
[1753772416985,0.112,118890.0,118880.0,2.56088484]
[1753772417781,0.40085922,118920.0,118880.0,2.56088484]
[1753772417782,0.64314812,118920.0,118910.0,0.1681972]
[1753772418081,0.77626932,118920.0,118910.0,0.9122072]
[1753772418284,0.84185932,118920.0,118910.0,0.9122072]
[1753772418486,1.02016932,118920.0,118910.0,0.9122072]
[1753772418874,1.02316932,118920.0,118910.0,0.9122072]
[1753772419080,0.742858,118920.0,118910.0,0.9122072]
[1753772419377,0.81915612,118920.0,118910.0,0.9122072]
[1753772419982,0.69916612,118920.0,118910.0,0.9122072]
[1753772420181,0.94306612,118920.0,118910.0,0.2110872]
[1753772420484,0.94306612,118920.0,118910.0,0.9121272]
[1753772420888,0.94206612,118920.0,118910.0,0.9121272]
[1753772422589,0.94206612,118920.0,118910.0,0.2110872]
[1753772422792,0.94206612,118920.0,118910.0,0.9120072]
[1753772424290,0.94206612,118920.0,118910.0,0.9119272]
[1753772425992,0.94206612,118920.0,118910.0,0.9118872]
[1753772426183,0.94206612,118920.0,118910.0,0.9118472]
[1753772427885,0.94206612,118920.0,118910.0,0.97225902]
[1753772431288,0.94206612,118920.0,118910.0,0.9118472]
[1753772432381,0.11999,118910.0,118900.0,0.06037692]
[1753772432586,0.11999,118910.0,118900.0,0.92910832]
[1753772432587,0.84757852,118910.0,118900.0,0.92910832]
[1753772433392,0.84757852,118910.0,118900.0,0.96736832]
[1753772433882,0.84757852,118910.0,118900.0,0.9069914]
[1753772434284,0.84957852,118910.0,118900.0,0.9069914]
[1753772434692,0.85057852,118910.0,118900.0,0.9069914]
[1753772435292,0.84857852,118910.0,118900.0,0.9069914]
[1753772435592,0.85157852,118910.0,118900.0,0.9069914]
[1753772438593,0.85257852,118910.0,118900.0,0.9069914]
[1753772443101,0.85257852,118910.0,118900.0,0.96736832]
[1753772443300,0.85257852,118910.0,118900.0,0.9069914]
[1753772443494,0.85257852,118910.0,118900.0,0.96736832]
[1753772443900,0.85257852,118910.0,118900.0,0.9069914]
[1753772444304,0.85257852,118910.0,118900.0,0.96736832]
[1753772447105,0.56350852,118910.0,118900.0,0.96736832]
[1753772447409,0.4023972,118910.0,118900.0,0.96736832]
[1753772447598,0.3317471,118910.0,118900.0,1.24767964]
[1753772447805,0.2831971,118910.0,118900.0,1.24767964]
[1753772448512,0.3317471,118910.0,118900.0,0.96736832]
[1753772449013,0.3287471,118910.0,118900.0,0.96736832]
[1753772449204,0.3307471,118910.0,118900.0,0.96736832]
[1753772450620,0.3307471,118910.0,118900.0,1.24767964]
[1753772450917,0.3307471,118910.0,118900.0,1.18730272]
[1753772451119,0.16255,118910.0,118900.0,1.68107915]
[1753772451316,0.05055,118910.0,118900.0,1.68107915]
[1753772451515,0.05155,118910.0,118900.0,1.68107915]
[1753772452318,0.05155,118910.0,118900.0,1.43107915]
[1753772454524,0.2197472,118910.0,118900.0,0.73055915]
[1753772454724,0.05155,118910.0,118900.0,1.43035915]
[1753772456225,0.2197471,118910.0,118900.0,1.43035915]
[1753772456521,0.05155,118910.0,118900.0,1.43035915]
[1753772457224,0.05155,118910.0,118900.0,1.35478272]
[1753772457719,0.003,118910.0,118900.0,1.35478272]
[1753772460125,0.003,118910.0,118900.0,0.73055915]
[1753772460326,0.003,118910.0,118900.0,2.59335915]
[1753772462827,0.003,118910.0,118900.0,2.56980915]
[1753772463234,0.1711971,118910.0,118900.0,2.56980915]
[1753772463530,0.003,118910.0,118900.0,2.55509915]
[1753772464530,0.003,118910.0,118900.0,2.47952272]
[1753772464733,0.1711971,118910.0,118900.0,2.1992114]
[1753772464926,0.1711971,118910.0,118900.0,2.47952272]
[1753772465228,0.55150842,118910.0,118900.0,0.8676114]
[1753772465525,0.58150842,118910.0,118900.0,0.8676114]
[1753772466131,0.58150842,118910.0,118900.0,0.1682114]
[1753772466426,0.1682112,118900.0,118890.0,1.2893638]
[1753772466630,0.56852252,118900.0,118890.0,2.0727864]
[1753772467231,0.12,118900.0,118890.0,2.35309772]
[1753772467432,0.2132523,118910.0,118900.0,0.1682112]
[1753772467732,0.3422523,118910.0,118900.0,0.1682112]
[1753772468128,0.3402523,118910.0,118900.0,0.1682112]
[1753772469037,0.3422523,118910.0,118900.0,0.1682112]
[1753772469338,0.132,118910.0,118900.0,0.44852252]
[1753772469632,0.002,118910.0,118900.0,0.44852252]
[1753772470237,0.003,118910.0,118900.0,0.44852252]
[1753772471538,0.04955,118910.0,118900.0,0.47972252]
[1753772471734,0.05055,118910.0,118900.0,0.47972252]
[1753772472640,0.04955,118910.0,118900.0,0.47972252]
[1753772475937,0.001,118910.0,118900.0,0.47972252]
[1753772476432,0.04912,118910.0,118900.0,0.47972252]
[1753772483241,0.001,118910.0,118900.0,0.47972252]
[1753772483636,0.04912,118910.0,118900.0,0.47972252]
[1753772486946,0.081,118910.0,118900.0,0.1994112]
[1753772487250,0.23982,118910.0,118900.0,0.47972252]
[1753772488250,0.18304,118910.0,118900.0,0.47972252]
[1753772488547,0.12024,118910.0,118900.0,0.47972252]
[1753772490747,0.18304,118910.0,118900.0,0.47972252]
[1753772492848,0.23982,118910.0,118900.0,0.47972252]
[1753772494745,0.28392,118910.0,118900.0,0.1994112]
[1753772494944,0.28392,118910.0,118900.0,0.47972252]
[1753772497248,0.28392,118910.0,118900.0,1.17824252]
[1753772507451,0.23215,118920.0,118910.0,0.4052287]
[1753772507651,0.24215,118920.0,118910.0,1.51921002]
[1753772509358,0.24415,118920.0,118910.0,1.51921002]
[1753772509554,0.28134,118920.0,118910.0,1.51921002]
[1753772511659,0.39134,118920.0,118910.0,1.51921002]
[1753772511956,0.28134,118920.0,118910.0,1.51921002]
[1753772514057,0.449523,118920.0,118910.0,1.51921002]
[1753772514259,0.539523,118920.0,118910.0,1.51921002]
[1753772514553,0.539523,118920.0,118910.0,0.9925787]
[1753772514856,0.81983432,118920.0,118910.0,1.0282803]
[1753772515053,0.81983432,118920.0,118910.0,1.1188403]
[1753772515959,0.12764,118920.0,118910.0,1.39915162]
[1753772516160,0.37134,118920.0,118910.0,1.39915162]
[1753772517857,0.28134,118920.0,118910.0,1.39915162]
[1753772518463,0.41134,118920.0,118910.0,1.39915162]
[1753772518762,0.28134,118920.0,118910.0,1.39915162]
[1753772519063,0.40134,118920.0,118910.0,1.39915162]
[1753772519363,0.28134,118920.0,118910.0,1.39915162]
[1753772519766,0.39134,118920.0,118910.0,1.39915162]
[1753772520363,0.28134,118920.0,118910.0,1.39915162]
[1753772520662,0.37134,118920.0,118910.0,1.39915162]
[1753772520964,0.28134,118920.0,118910.0,1.39915162]
[1753772521464,0.1596,118920.0,118910.0,1.39915162]
[1753772521660,0.002,118920.0,118910.0,1.39915162]
[1753772522463,0.28134,118920.0,118910.0,1.39915162]
[1753772525870,0.39134,118920.0,118910.0,1.39915162]
[1753772526070,0.28134,118920.0,118910.0,1.39915162]
[1753772527370,0.39134,118920.0,118910.0,1.39915162]
[1753772528077,0.28134,118920.0,118910.0,1.39915162]
[1753772530168,0.002,118920.0,118910.0,1.39915162]
[1753772534480,0.112,118920.0,118910.0,1.39915162]
[1753772534974,0.33435,118920.0,118910.0,1.39915162]
[1753772535280,0.38968,118920.0,118910.0,1.1188403]
[1753772536081,0.38968,118920.0,118910.0,1.39915162]
[1753772536483,0.38968,118920.0,118910.0,1.1188403]
[1753772536982,0.27968,118920.0,118910.0,1.1188403]
[1753772537181,0.37968,118920.0,118910.0,1.39915162]
[1753772537976,0.27968,118920.0,118910.0,1.39915162]
[1753772538179,0.38968,118920.0,118910.0,1.39915162]
[1753772538776,0.27968,118920.0,118910.0,1.39915162]
[1753772540582,0.38968,118920.0,118910.0,1.39915162]
[1753772541177,0.11251,118920.0,118910.0,1.39915162]
[1753772541383,0.18111,118920.0,118910.0,1.39915162]
[1753772541681,0.34828,118920.0,118910.0,1.39915162]
[1753772541882,0.37968,118920.0,118910.0,1.39915162]
[1753772542782,0.27968,118920.0,118910.0,1.39915162]
[1753772543082,0.38968,118920.0,118910.0,1.39915162]
[1753772543383,0.27968,118920.0,118910.0,1.39915162]
[1753772544486,0.002,118920.0,118910.0,1.39915162]
[1753772547981,0.0420362,118950.0,118930.0,0.10745]
[1753772547982,0.57457542,118950.0,118930.0,0.10745]
[1753772548180,0.27958,118940.0,118930.0,0.68205012]
[1753772548382,0.13,118940.0,118930.0,1.37953012]
[1753772548580,0.13,118940.0,118930.0,1.51129012]
[1753772548780,0.27958,118950.0,118940.0,0.4073647]
[1753772548980,0.39958,118950.0,118940.0,0.68767602]
[1753772549587,0.40158,118950.0,118940.0,0.68767602]
[1753772549782,0.5697206,118950.0,118940.0,0.4073647]
[1753772550081,0.40158,118950.0,118940.0,0.4073647]
[1753772550281,0.39958,118950.0,118940.0,0.68767602]
[1753772550481,0.20401,118950.0,118940.0,0.68767602]
[1753772550686,0.31585,118950.0,118940.0,0.68767602]
[1753772550884,0.40658,118950.0,118940.0,0.68767602]
[1753772551487,0.40658,118950.0,118940.0,0.69626165]
[1753772553587,0.40658,118950.0,118940.0,0.41595033]
[1753772554484,0.40658,118950.0,118940.0,0.69626165]
[1753772555586,0.40658,118950.0,118940.0,0.41595033]
[1753772555887,0.5747205,118950.0,118940.0,0.41595033]
[1753772558392,0.40658,118950.0,118940.0,0.41595033]
[1753772564493,0.29417,118950.0,118940.0,0.30850033]
[1753772565394,0.29417,118950.0,118940.0,0.58881165]
[1753772566797,0.5042431,118950.0,118940.0,0.51857343]
[1753772566998,0.6163831,118950.0,118940.0,0.62668343]
[1753772567598,0.40631,118950.0,118940.0,0.62668343]
[1753772567798,0.6163831,118950.0,118940.0,0.62668343]
[1753772568400,0.6163831,118950.0,118940.0,0.83675653]
[1753772569303,0.40631,118950.0,118940.0,0.83675653]
[1753772569600,0.6163831,118950.0,118940.0,0.83675653]
[1753772572901,0.40631,118950.0,118940.0,0.83675653]
[1753772573098,0.6163831,118950.0,118940.0,0.83675653]
[1753772576004,0.40631,118950.0,118940.0,0.83675653]
[1753772576403,0.6163831,118950.0,118940.0,0.83675653]
[1753772577199,0.15993,118960.0,118950.0,0.2356606]
[1753772577505,0.35051,118960.0,118950.0,1.5206368]
[1753772578002,0.28051,118960.0,118950.0,1.3105637]
[1753772578502,0.28651,118960.0,118950.0,1.3105637]
[1753772578904,0.28951,118960.0,118950.0,1.38049648]
[1753772579502,0.009,118960.0,118950.0,1.38049648]
[1753772579708,0.28061,118980.0,118970.0,0.4039824]
[1753772580006,0.39061,118980.0,118970.0,1.38038828]
[1753772580307,0.39061,118980.0,118970.0,1.1003824]
[1753772580502,0.39061,118980.0,118970.0,1.11925404]
[1753772580707,0.39061,118980.0,118970.0,1.39925992]
[1753772580898,0.39061,118980.0,118970.0,1.11925404]
[1753772581102,0.5637083,118980.0,118970.0,1.39925992]
[1753772581304,0.5637083,118980.0,118970.0,1.11925404]
[1753772582304,0.5657083,118980.0,118970.0,1.11925404]
[1753772583206,0.39761,118980.0,118970.0,1.11925404]
[1753772583413,0.5637082,118980.0,118970.0,1.11925404]
[1753772583608,0.5597082,118980.0,118970.0,1.39925992]
[1753772584009,0.5597082,118980.0,118970.0,1.11925404]
[1753772584812,0.5597082,118980.0,118970.0,1.39925992]
[1753772585614,0.39161,118980.0,118970.0,1.11925404]
[1753772585812,0.39161,118980.0,118970.0,1.39925992]
[1753772586212,0.1111,118980.0,118970.0,1.39925992]
[1753772596119,0.1111,118980.0,118970.0,1.39925588]
[1753772599623,0.1111,118980.0,118970.0,1.39886099]
[1753772603726,0.0011,118980.0,118970.0,1.39886099]
[1753772604823,0.0011,118980.0,118970.0,1.32879157]
[1753772606326,0.0011,118980.0,118970.0,1.53872803]
[1753772607023,0.0011,118980.0,118970.0,1.32879157]